fUSD/lending_fUSD_20260621
["ID","MTS","AMOUNT","RATE_DAILY","PERIOD"]
[425871716,1782012679000,-500.0,0.00030684,2]
[425871720,1782012679000,-500.0,0.00030684,2]
[425871711,1782012679000,-835.92,0.00030684,2]
[425871709,1782012679000,-500.0,0.00030684,2]
[425871715,1782012679000,-500.0,0.00030684,2]
[425871713,1782012679000,-500.0,0.00030684,2]
[425871710,1782012679000,-566.74,0.00030684,2]
[425871722,1782012679000,-772.27,0.00030684,2]
[425871721,1782012679000,-712.22,0.00030684,2]
[425871728,1782012679000,-500.0,0.00030684,2]
[425871724,1782012679000,-896.77,0.00030684,2]
[425871725,1782012679000,-3786.61,0.00030684,2]
[425871723,1782012679000,-4954.61,0.00030684,2]
[425871726,1782012679000,-500.0,0.00030684,2]
[425871729,1782012679000,-985.28,0.00030684,2]
[425871727,1782012679000,-500.0,0.00030684,2]
[425871730,1782012679000,-500.0,0.00030684,2]
[425871672,1782012679000,-500.0,0.00030684,2]
[425871707,1782012679000,-573.86,0.00030684,2]
[425871705,1782012679000,-4964.73,0.00030684,2]
[425871714,1782012679000,-500.0,0.00030684,2]
[425871701,1782012679000,-542.74,0.00030684,2]
[425871702,1782012679000,-637.71,0.00030684,2]
[425871675,1782012679000,-500.0,0.00030684,2]
[425871687,1782012679000,-500.0,0.00030684,2]
[425871679,1782012679000,-5214.95,0.00030684,2]
[425871680,1782012679000,-6656.18,0.00030684,2]
[425871686,1782012679000,-530.07,0.00030684,2]
[425871678,1782012679000,-500.0,0.00030684,2]
[425871676,1782012679000,-500.0,0.00030684,2]
[425871685,1782012679000,-500.0,0.00030684,2]
[425871684,1782012679000,-500.0,0.00030684,2]
[425871682,1782012679000,-2272.38,0.00030684,2]
[425871683,1782012679000,-1173.97,0.00030684,2]
[425871689,1782012679000,-585.1,0.00030684,2]
[425871681,1782012679000,-500.0,0.00030684,2]
[425871688,1782012679000,-1588.97,0.00030684,2]
[425871700,1782012679000,-500.0,0.00030684,2]
[425871698,1782012679000,-500.0,0.00030684,2]
[425871699,1782012679000,-500.0,0.00030684,2]
[425871693,1782012679000,-500.0,0.00030684,2]
[425871696,1782012679000,-156.37377183,0.00030684,2]
[425871695,1782012679000,-567.84,0.00030684,2]
[425871697,1782012679000,-500.0,0.00030684,2]
[425871692,1782012679000,-500.0,0.00030684,2]
[425871691,1782012679000,-500.0,0.00030684,2]
[425871690,1782012679000,-500.0,0.00030684,2]
[425871694,1782012679000,-582.64,0.00030684,2]
[425871777,1782012680000,-500.0,0.00030684,2]
[425871765,1782012680000,-500.0,0.00030684,2]
[425871782,1782012680000,-663.69,0.00030684,2]
[425871783,1782012680000,-500.0,0.00030684,2]
[425871772,1782012680000,-500.0,0.00030684,2]
[425871766,1782012680000,-1487.34,0.00030684,2]
[425871769,1782012680000,-500.0,0.00030684,2]
[425871770,1782012680000,-726.74,0.00030684,2]
[425871762,1782012680000,-500.0,0.00030684,2]
[425871767,1782012680000,-833.31,0.00030684,2]
[425871768,1782012680000,-500.0,0.00030684,2]
[425871775,1782012680000,-500.0,0.00030684,2]
[425871764,1782012680000,-500.0,0.00030684,2]
[425871776,1782012680000,-568.0,0.00030684,2]
[425871789,1782012680000,-500.0,0.00030684,2]
[425871778,1782012680000,-500.0,0.00030684,2]
[425871784,1782012680000,-514.4952677,0.00030684,2]
[425871771,1782012680000,-500.0,0.00030684,2]
[425871774,1782012680000,-768.17,0.00030684,2]
[425871780,1782012680000,-608.87,0.00030684,2]
[425871779,1782012680000,-500.0,0.00030684,2]
[425871781,1782012680000,-852.64,0.00030684,2]
[425871785,1782012680000,-500.0,0.00030684,2]
[425871786,1782012680000,-500.0,0.00030684,2]
[425871797,1782012680000,-500.0,0.00030684,2]
[425871791,1782012680000,-500.0,0.00030684,2]
[425871796,1782012680000,-524.51764816,0.00030684,2]
[425871761,1782012680000,-500.0,0.00030684,2]
[425871773,1782012680000,-300.0,0.00030684,2]
[425871763,1782012680000,-500.0,0.00030684,2]
[425871731,1782012680000,-736.73,0.00030684,2]
[425871759,1782012680000,-521.26,0.00030684,2]
[425871733,1782012680000,-515.08,0.00030684,2]
[425871732,1782012680000,-567.17,0.00030684,2]
[425871790,1782012680000,-624.26,0.00030684,2]
[425871734,1782012680000,-500.0,0.00030684,2]
[425871737,1782012680000,-500.0,0.00030684,2]
[425871738,1782012680000,-500.0,0.00030684,2]
[425871740,1782012680000,-500.0,0.00030684,2]
[425871739,1782012680000,-500.0,0.00030684,2]
[425871736,1782012680000,-500.0,0.00030684,2]
[425871745,1782012680000,-535.05,0.00030684,2]
[425871743,1782012680000,-500.0,0.00030684,2]
[425871735,1782012680000,-695.42,0.00030684,2]
[425871742,1782012680000,-3175.38,0.00030684,2]
[425871760,1782012680000,-500.0,0.00030684,2]
[425871741,1782012680000,-500.0,0.00030684,2]
[425871746,1782012680000,-500.0,0.00030684,2]
[425871748,1782012680000,-500.0,0.00030684,2]
[425871758,1782012680000,-500.0,0.00030684,2]
[425871747,1782012680000,-653.04,0.00030684,2]
[425871750,1782012680000,-1157.36,0.00030684,2]
[425871751,1782012680000,-1255.28,0.00030684,2]
[425871749,1782012680000,-500.0,0.00030684,2]
[425871753,1782012680000,-1000.0,0.00030684,2]
[425871754,1782012680000,-576.1,0.00030684,2]
[425871752,1782012680000,-652.47,0.00030684,2]
[425871757,1782012680000,-861.91,0.00030684,2]
[425871756,1782012680000,-875.04,0.00030684,2]
[425871755,1782012680000,-5471.52,0.00030684,2]
[425871744,1782012680000,-1244.33,0.00030684,2]
[425871788,1782012680000,-500.0,0.00030684,2]
[425871794,1782012680000,-500.0,0.00030684,2]
[425871793,1782012680000,-769.83,0.00030684,2]
[425871825,1782012680000,-626.55,0.00030684,2]
[425871826,1782012680000,-500.0,0.00030684,2]
[425871830,1782012680000,-932.54,0.00030684,2]
[425871831,1782012680000,-500.0,0.00030684,2]
[425871832,1782012680000,-1088.56,0.00030684,2]
[425871824,1782012680000,-811.07,0.00030684,2]
[425871833,1782012680000,-500.0,0.00030684,2]
[425871834,1782012680000,-34471.253124,0.00030684,2]
[425871839,1782012680000,-935.58,0.00030684,2]
[425871844,1782012680000,-500.0,0.00030684,2]
[425871837,1782012680000,-500.0,0.00030684,2]
[425871838,1782012680000,-500.0,0.00030684,2]
[425871847,1782012680000,-500.0,0.00030684,2]
[425871835,1782012680000,-500.0,0.00030684,2]
[425871836,1782012680000,-500.0,0.00030684,2]
[425871846,1782012680000,-500.0,0.00030684,2]
[425871842,1782012680000,-7269.77,0.00030684,2]
[425871843,1782012680000,-500.0,0.00030684,2]
[425871845,1782012680000,-1065.67,0.00030684,2]
[425871840,1782012680000,-500.0,0.00030684,2]
[425871855,1782012680000,-2302.99054595,0.00030684,2]
[425871787,1782012680000,-741.12,0.00030684,2]
[425871853,1782012680000,-500.0,0.00030684,2]
[425871852,1782012680000,-500.0,0.00030684,2]
[425871849,1782012680000,-500.0,0.00030684,2]
[425871850,1782012680000,-1056.74,0.00030684,2]
[425871848,1782012680000,-500.0,0.00030684,2]
[425871851,1782012680000,-500.0,0.00030684,2]
[425871841,1782012680000,-500.0,0.00030684,2]
[425871828,1782012680000,-500.0,0.00030684,2]
[425871854,1782012680000,-2019.42,0.00030684,2]
[425871829,1782012680000,-523.29,0.00030684,2]
[425871827,1782012680000,-500.0,0.00030684,2]
[425871792,1782012680000,-500.0,0.00030684,2]
[425871795,1782012680000,-6854.81,0.00030684,2]
[425871808,1782012680000,-625.08,0.00030684,2]
[425871798,1782012680000,-7914.34,0.00030684,2]
[425871809,1782012680000,-500.0,0.00030684,2]
[425871810,1782012680000,-500.0,0.00030684,2]
[425871807,1782012680000,-500.0,0.00030684,2]
[425871811,1782012680000,-638.77,0.00030684,2]
[425871800,1782012680000,-500.0,0.00030684,2]
[425871799,1782012680000,-500.0,0.00030684,2]
[425871804,1782012680000,-500.0,0.00030684,2]
[425871803,1782012680000,-1139.01,0.00030684,2]
[425871801,1782012680000,-500.0,0.00030684,2]
[425871805,1782012680000,-814.25,0.00030684,2]
[425871823,1782012680000,-1713.94,0.00030684,2]
[425871802,1782012680000,-500.0,0.00030684,2]
[425871812,1782012680000,-617.88,0.00030684,2]
[425871813,1782012680000,-666.42,0.00030684,2]
[425871814,1782012680000,-16323.99,0.00030684,2]
[425871815,1782012680000,-500.0,0.00030684,2]
[425871821,1782012680000,-500.0,0.00030684,2]
[425871819,1782012680000,-500.0,0.00030684,2]
[425871806,1782012680000,-500.0,0.00030684,2]
[425871822,1782012680000,-500.0,0.00030684,2]
[425871816,1782012680000,-500.0,0.00030684,2]
[425871820,1782012680000,-3923.16,0.00030684,2]
[425871818,1782012680000,-500.0,0.00030684,2]
[425871817,1782012680000,-758.84,0.00030684,2]
[425871859,1782012681000,-500.0,0.00030684,2]
[425871856,1782012681000,-429.06945405,0.00030684,2]
[425871857,1782012681000,-500.0,0.00030684,2]
[425871858,1782012681000,-500.0,0.00030684,2]
[425871865,1782012681000,-454.93384398,0.00030684,2]
[425871864,1782012681000,-535.27,0.00030684,2]
[425871860,1782012681000,-932.5,0.00030684,2]
[425871862,1782012681000,-526.9,0.00030684,2]
[425871863,1782012681000,-381.84766306,0.00030684,2]
[425871861,1782012681000,-1723.96,0.00030684,2]
[425871887,1782012682000,-1661.56,0.00030684,2]
[425871888,1782012682000,-500.0,0.00030684,2]
[425871890,1782012682000,-500.0,0.00030684,2]
[425871891,1782012682000,-787.18,0.00030684,2]
[425871892,1782012682000,-1436.46,0.00030684,2]
[425871889,1782012682000,-1085.35,0.00030684,2]
[425871904,1782012682000,-162.0,0.00030685,30]
[425871894,1782012682000,-500.0,0.00030684,2]
[425871896,1782012682000,-500.0,0.00030684,2]
[425871897,1782012682000,-500.0,0.00030684,2]
[425871905,1782012682000,-162.35803159,0.00030685,30]
[425871893,1782012682000,-500.0,0.00030684,2]
[425871900,1782012682000,-500.0,0.00030684,2]
[425871898,1782012682000,-575.11,0.00030684,2]
[425871901,1782012682000,-881.21,0.00030684,2]
[425871903,1782012682000,-500.0,0.00030684,2]
[425871886,1782012682000,-500.0,0.00030684,2]
[425871895,1782012682000,-2323.18,0.00030684,2]
[425871885,1782012682000,-45.06615602,0.00030684,2]
[425871902,1782012682000,-500.0,0.00030684,2]
[425871882,1782012682000,-737.01883377,0.00030136,2]
[425871867,1782012682000,-6002.43,0.00027397,10]
[425871866,1782012682000,-153.38349326,0.00013588,2]
[425871868,1782012682000,-500.0,0.00029488,2]
[425871869,1782012682000,-500.0,0.00029488,2]
[425871881,1782012682000,-500.0,0.00030136,2]
[425871871,1782012682000,-500.0,0.00029589,2]
[425871870,1782012682000,-506.64029127,0.00029488,2]
[425871872,1782012682000,-500.0,0.00029589,2]
[425871873,1782012682000,-500.0,0.00029589,2]
[425871876,1782012682000,-500.0,0.00029589,2]
[425871874,1782012682000,-546.13075202,0.00029589,2]
[425871875,1782012682000,-500.0,0.00029589,2]
[425871877,1782012682000,-200.0,0.00029842,2]
[425871878,1782012682000,-500.0,0.00029863,2]
[425871880,1782012682000,-500.0,0.00029863,2]
[425871879,1782012682000,-500.0,0.00029863,2]
[425871884,1782012682000,-200.0,0.00030597,2]
[425871883,1782012682000,-500.0,0.0003041,2]
[425871899,1782012682000,-500.0,0.00030684,2]
[425871922,1782012682000,-167.0234,0.00030736,4]
[425871910,1782012682000,-251.0,0.0003069,2]
[425871930,1782012682000,-500.35893196,0.0003079,2]
[425871933,1782012682000,-526.30007439,0.00030812,2]
[425871934,1782012682000,-500.35893196,0.00030853,2]
[425871932,1782012682000,-1283.54,0.000308,7]
[425871935,1782012682000,-168.69833086,0.00030865,30]
[425871937,1782012682000,-202.0,0.00030866,30]
[425871936,1782012682000,-203.0,0.00030866,30]
[425871939,1782012682000,-155.0,0.00030866,30]
[425871938,1782012682000,-157.0,0.00030866,30]
[425871931,1782012682000,-1689.3,0.000308,7]
[425871941,1782012682000,-155.0,0.00030866,30]
[425871940,1782012682000,-158.67306325,0.00030866,30]
[425871942,1782012682000,-154.0,0.00030866,30]
[425871946,1782012682000,-600.0,0.000309,11]
[425871945,1782012682000,-405888.19485329,0.000309,2]
[425871943,1782012682000,-150.0,0.00030875,3]
[425871906,1782012682000,-251.0,0.0003069,2]
[425871927,1782012682000,-2500.0,0.0003075,2]
[425871929,1782012682000,-526.30007439,0.00030781,2]
[425871944,1782012682000,-12388.03698006,0.000309,2]
[425871947,1782012682000,-1573068.28557383,0.000309,6]
[425871918,1782012682000,-749.0,0.00030715,2]
[425871924,1782012682000,-5134.57,0.0003075,2]
[425871909,1782012682000,-251.0,0.0003069,2]
[425871914,1782012682000,-749.0,0.00030715,2]
[425871908,1782012682000,-251.0,0.0003069,2]
[425871911,1782012682000,-251.0,0.0003069,2]
[425871913,1782012682000,-251.0,0.0003069,2]
[425871916,1782012682000,-749.0,0.00030715,2]
[425871915,1782012682000,-749.0,0.00030715,2]
[425871912,1782012682000,-251.0,0.0003069,2]
[425871917,1782012682000,-749.0,0.00030715,2]
[425871920,1782012682000,-749.0,0.00030715,2]
[425871921,1782012682000,-536.84408922,0.00030726,15]
[425871919,1782012682000,-749.0,0.00030715,2]
[425871928,1782012682000,-526.30007439,0.00030755,2]
[425871923,1782012682000,-526.30007439,0.0003074,2]
[425871925,1782012682000,-25000.0,0.0003075,2]
[425871926,1782012682000,-25000.0,0.0003075,2]
[425871907,1782012682000,-251.0,0.0003069,2]
[425871949,1782012683000,-186.193351,0.00019452,2]
[425871950,1782012683000,-71.67376225,0.0002,2]
[425871951,1782012683000,-327.13788831,0.0002,2]
[425871948,1782012683000,-162.791075,0.0001817,2]
[425871968,1782012684000,-500.0,0.00029589,2]
[425871964,1782012684000,-500.0,0.00029589,2]
[425871966,1782012684000,-500.0,0.00029589,2]
[425871971,1782012684000,-500.0,0.00029589,2]
[425871974,1782012684000,-500.0,0.00029589,2]
[425871983,1782012684000,-500.0,0.00029863,2]
[425871984,1782012684000,-500.0,0.00029863,2]
[425871975,1782012684000,-757.1,0.00029589,2]
[425871978,1782012684000,-500.0,0.00029863,2]
[425871967,1782012684000,-500.0,0.00029589,2]
[425871979,1782012684000,-689.61,0.00029863,2]
[425871973,1782012684000,-1439.36,0.00029589,2]
[425871970,1782012684000,-500.0,0.00029589,2]
[425871957,1782012684000,-500.0,0.00029589,2]
[425871963,1782012684000,-500.0,0.00029589,2]
[425871965,1782012684000,-762.22,0.00029589,2]
[425871969,1782012684000,-500.0,0.00029589,2]
[425871962,1782012684000,-500.0,0.00029589,2]
[425871958,1782012684000,-500.0,0.00029589,2]
[425871955,1782012684000,-3975.72391131,0.00029232,2]
[425871956,1782012684000,-500.0,0.00029589,2]
[425871959,1782012684000,-500.0,0.00029589,2]
[425871961,1782012684000,-500.0,0.00029589,2]
[425871954,1782012684000,-6081.0,0.00023447,2]
[425871952,1782012684000,-861.9411354,0.0001399,2]
[425871953,1782012684000,-113.18834944,0.0002,2]
[425871976,1782012684000,-476.0,0.00029589,10]
[425871972,1782012684000,-1141.95,0.00029589,2]
[425871977,1782012684000,-500.0,0.00029863,2]
[425871960,1782012684000,-689.61,0.00029589,2]
[425871980,1782012684000,-500.0,0.00029863,2]
[425872011,1782012684000,-500.0,0.0003041,2]
[425872012,1782012684000,-1141.95,0.0003041,2]
[425872009,1782012684000,-552.58912641,0.0003041,2]
[425872000,1782012684000,-500.0,0.00030136,2]
[425871999,1782012684000,-500.0,0.00030136,2]
[425872003,1782012684000,-1439.36,0.00030136,2]
[425872007,1782012684000,-500.0,0.0003041,2]
[425872004,1782012684000,-205.90025615,0.0003031,5]
[425872002,1782012684000,-1141.95,0.00030136,2]
[425872005,1782012684000,-689.61,0.0003041,2]
[425872006,1782012684000,-762.22,0.0003041,2]
[425872001,1782012684000,-500.0,0.00030136,2]
[425871997,1782012684000,-500.0,0.00030136,2]
[425872008,1782012684000,-500.0,0.0003041,2]
[425872010,1782012684000,-500.0,0.0003041,2]
[425871994,1782012684000,-689.61,0.00030136,2]
[425871998,1782012684000,-500.0,0.00030136,2]
[425871982,1782012684000,-762.22,0.00029863,2]
[425871988,1782012684000,-275.83459232,0.00029863,2]
[425871987,1782012684000,-500.0,0.00029863,2]
[425871985,1782012684000,-500.0,0.00029863,2]
[425871986,1782012684000,-500.0,0.00029863,2]
[425871981,1782012684000,-500.0,0.00029863,2]
[425871991,1782012684000,-1439.36,0.00029863,2]
[425871990,1782012684000,-1141.95,0.00029863,2]
[425871993,1782012684000,-500.0,0.00030136,2]
[425871992,1782012684000,-757.1,0.00029863,2]
[425871995,1782012684000,-500.0,0.00030136,2]
[425871996,1782012684000,-762.22,0.00030136,2]
[425871989,1782012684000,-500.0,0.00029863,2]
[425872019,1782012685000,-500.0,0.00030684,2]
[425872018,1782012685000,-500.0,0.00030684,2]
[425872014,1782012685000,-762.22,0.00030684,2]
[425872017,1782012685000,-500.0,0.00030684,2]
[425872020,1782012685000,-1141.95,0.00030684,2]
[425872016,1782012685000,-689.61,0.00030684,2]
[425872013,1782012685000,-500.0,0.00030684,2]
[425872021,1782012685000,-143722.23082989,0.000309,6]
[425872022,1782012685000,-757.1,0.00030136,2]
[425872023,1782012685000,-15124.44929705,0.000309,6]
[425872015,1782012685000,-500.0,0.00030684,2]
[425872024,1782012692000,500.0,0.00012912,2]
[425872029,1782012775000,-642.92286213,0.00013011,2]
[425872030,1782012829000,-214.89291742,0.00013274,7]
[425872032,1782012883000,-295.605,0.00013326,2]
[425872033,1782012936000,-500.0,0.00013325,2]
[425872035,1782012951000,165.65676504,0.00011966,2]
[425872036,1782012968000,511.446218,7.945e-05,2]
[425872037,1782012990000,-150.0,0.00013325,2]
[425872038,1782013044000,-500.0,0.00013325,2]
[425872039,1782013097000,-504.74582861,0.00013325,2]
[425872040,1782013150000,-151.0,0.00013325,2]
[425872041,1782013204000,-719.51531923,0.00013201,2]
[425872042,1782013220000,-200.0,0.00013023,2]
[425872043,1782013234000,14997.5,0.0001289,2]
[425872044,1782013247000,219.13,0.00012966,2]
[425872045,1782013388000,-150.0,0.00013199,2]
[425872046,1782013442000,-169.90980216,0.00013199,2]
[425872047,1782013495000,-500.0,0.00013198,2]
[425872048,1782013500000,15995.69,0.00012703,2]
[425872049,1782013548000,-159.5102059,0.00013098,2]
[425872050,1782013560000,182.23,0.00012903,2]
[425872051,1782013562000,220.92,0.00012907,2]
[425872052,1782013602000,-150.0,0.00013197,2]
[425872053,1782013656000,-500.0,0.00013197,2]
[425872054,1782013691000,275.540121,0.000209,30]
[425872056,1782013694000,-146.19508271,0.00013099,2]
[425872055,1782013694000,-260.7997,0.00013099,2]
[425872057,1782013709000,-7098.88657043,0.00013099,2]
[425872058,1782013729000,-7098.88657043,0.00013099,2]
[425872059,1782013746000,-714.38,0.00013099,2]
[425872060,1782013764000,-169.12205782,0.00013034,2]
[425872062,1782013764000,-500.0,0.00013098,2]
[425872061,1782013764000,-206.28120178,0.00013098,2]
[425872063,1782013764000,-213.62158375,0.00013098,2]
[425872067,1782013764000,-64.99327641,0.00013098,2]
[425872066,1782013764000,-99.78745785,0.00013098,2]
[425872065,1782013764000,-500.0,0.00013098,2]
[425872068,1782013764000,-104.12878141,0.00013098,2]
[425872064,1782013764000,-174.15358835,0.00013098,2]
[425872069,1782013765000,-319.9775357,0.00013098,2]
[425872070,1782013765000,-157.24240289,0.00013098,2]
[425872073,1782013765000,-153.75,0.00013098,2]
[425872072,1782013765000,-153.75,0.00013098,2]
[425872071,1782013765000,-153.75,0.00013098,2]
[425872074,1782013808000,171.34,0.00010824,2]
[425872097,1782013832000,-886.82310955,0.00013098,2]
[425872095,1782013832000,-886.82310955,0.00013098,2]
[425872099,1782013832000,-886.82310955,0.00013098,2]
[425872098,1782013832000,-886.82310955,0.00013098,2]
[425872100,1782013832000,-886.82310955,0.00013098,2]
[425872102,1782013832000,-886.82310955,0.00013098,2]
[425872108,1782013832000,-886.82310955,0.00013098,2]
[425872101,1782013832000,-886.82310955,0.00013098,2]
[425872111,1782013832000,-886.82310955,0.00013098,2]
[425872094,1782013832000,-886.82310955,0.00013098,2]
[425872106,1782013832000,-886.82310955,0.00013098,2]
[425872103,1782013832000,-886.82310955,0.00013098,2]
[425872107,1782013832000,-886.82310955,0.00013098,2]
[425872096,1782013832000,-886.82310955,0.00013098,2]
[425872082,1782013832000,-886.82310955,0.00013098,2]
[425872093,1782013832000,-886.82310955,0.00013098,2]
[425872092,1782013832000,-886.82310955,0.00013098,2]
[425872091,1782013832000,-886.82310955,0.00013098,2]
[425872085,1782013832000,-886.82310955,0.00013098,2]
[425872089,1782013832000,-886.82310955,0.00013098,2]
[425872088,1782013832000,-886.82310955,0.00013098,2]
[425872087,1782013832000,-886.82310955,0.00013098,2]
[425872084,1782013832000,-886.82310955,0.00013098,2]
[425872086,1782013832000,-886.82310955,0.00013098,2]
[425872083,1782013832000,-886.82310955,0.00013098,2]
[425872081,1782013832000,-886.82310955,0.00013098,2]
[425872080,1782013832000,-178.46185347,0.00013098,2]
[425872079,1782013832000,-268.33070666,0.00013098,2]
[425872090,1782013832000,-886.82310955,0.00013098,2]
[425872104,1782013832000,-886.82310955,0.00013098,2]
[425872109,1782013832000,-886.82310955,0.00013098,2]
[425872105,1782013832000,-886.82310955,0.00013098,2]
[425872110,1782013832000,-886.82310955,0.00013098,2]
[425872160,1782013832000,-874.15420799,0.00013098,2]
[425872155,1782013832000,-874.15420799,0.00013098,2]
[425872152,1782013832000,-874.15420799,0.00013098,2]
[425872164,1782013832000,-874.15420799,0.00013098,2]
[425872167,1782013832000,-874.15420799,0.00013098,2]
[425872157,1782013832000,-874.15420799,0.00013098,2]
[425872150,1782013832000,-874.15420799,0.00013098,2]
[425872162,1782013832000,-874.15420799,0.00013098,2]
[425872148,1782013832000,-874.15420799,0.00013098,2]
[425872142,1782013832000,-874.15420799,0.00013098,2]
[425872144,1782013832000,-874.15420799,0.00013098,2]
[425872139,1782013832000,-874.15420799,0.00013098,2]
[425872146,1782013832000,-874.15420799,0.00013098,2]
[425872166,1782013832000,-874.15420799,0.00013098,2]
[425872135,1782013832000,-886.82310955,0.00013098,2]
[425872137,1782013832000,-886.82310955,0.00013098,2]
[425872113,1782013832000,-886.82310955,0.00013098,2]
[425872112,1782013832000,-886.82310955,0.00013098,2]
[425872114,1782013832000,-886.82310955,0.00013098,2]
[425872118,1782013832000,-886.82310955,0.00013098,2]
[425872119,1782013832000,-886.82310955,0.00013098,2]
[425872116,1782013832000,-886.82310955,0.00013098,2]
[425872120,1782013832000,-886.82310955,0.00013098,2]
[425872122,1782013832000,-886.82310955,0.00013098,2]
[425872127,1782013832000,-886.82310955,0.00013098,2]
[425872131,1782013832000,-886.82310955,0.00013098,2]
[425872133,1782013832000,-886.82310955,0.00013098,2]
[425872121,1782013832000,-886.82310955,0.00013098,2]
[425872196,1782013833000,-867.42994487,0.00013098,2]
[425872202,1782013833000,-867.42994487,0.00013098,2]
[425872200,1782013833000,-867.42994487,0.00013098,2]
[425872197,1782013833000,-867.42994487,0.00013098,2]
[425872199,1782013833000,-867.42994487,0.00013098,2]
[425872201,1782013833000,-867.42994487,0.00013098,2]
[425872198,1782013833000,-867.42994487,0.00013098,2]
[425872211,1782013833000,-1000.0,0.00013196,2]
[425872205,1782013833000,-867.42994481,0.00013098,2]
[425872208,1782013833000,-80284.45296376,0.00013099,2]
[425872207,1782013833000,-150.0,0.00013099,2]
[425872206,1782013833000,-312.44710486,0.00013099,2]
[425872209,1782013833000,-13041.27820578,0.00013099,2]
[425872195,1782013833000,-867.42994487,0.00013098,2]
[425872203,1782013833000,-867.42994487,0.00013098,2]
[425872193,1782013833000,-867.42994487,0.00013098,2]
[425872171,1782013833000,-874.15420799,0.00013098,2]
[425872194,1782013833000,-867.42994487,0.00013098,2]
[425872169,1782013833000,-874.15420799,0.00013098,2]
[425872172,1782013833000,-874.15420799,0.00013098,2]
[425872214,1782013833000,-1000.0,0.00013199,2]
[425872174,1782013833000,-874.15420799,0.00013098,2]
[425872176,1782013833000,-874.15420799,0.00013098,2]
[425872178,1782013833000,-874.15420799,0.00013098,2]
[425872180,1782013833000,-874.15420799,0.00013098,2]
[425872182,1782013833000,-874.15420799,0.00013098,2]
[425872185,1782013833000,-874.15420799,0.00013098,2]
[425872190,1782013833000,-874.15420799,0.00013098,2]
[425872189,1782013833000,-874.15420799,0.00013098,2]
[425872192,1782013833000,-874.15420799,0.00013098,2]
[425872188,1782013833000,-874.15420799,0.00013098,2]
[425872187,1782013833000,-874.15420799,0.00013098,2]
[425872191,1782013833000,-874.15420799,0.00013098,2]
[425872204,1782013833000,-867.42994487,0.00013098,2]
[425872213,1782013833000,-160.78665199,0.00013197,7]
[425872186,1782013833000,-874.15420799,0.00013098,2]
[425872212,1782013833000,-150.0,0.00013196,2]
[425872236,1782013833000,-150.0,0.00013491,2]
[425872239,1782013833000,-357.70749691,0.00013529,2]
[425872238,1782013833000,-292.15128872,0.000135,2]
[425872249,1782013833000,-289.26422851,0.00013549,2]
[425872237,1782013833000,-501.0270542,0.00013498,2]
[425872241,1782013833000,-323.71549691,0.00013541,2]
[425872240,1782013833000,-52.56250309,0.00013529,2]
[425872242,1782013833000,-492.09771638,0.00013541,2]
[425872244,1782013833000,-646.87442198,0.00013097,2]
[425872243,1782013833000,-500.0,0.00013097,2]
[425872245,1782013833000,-508.72580855,0.00013097,2]
[425872248,1782013833000,-60.73577149,0.00013541,2]
[425872247,1782013833000,-1367.53529897,0.00013541,2]
[425872246,1782013833000,-879.88174488,0.00013541,2]
[425872210,1782013833000,-4301.77590689,0.00013099,2]
[425872233,1782013833000,-152.0,0.00013326,2]